fUST/lending_fUST_20240713
["ID","MTS","AMOUNT","RATE_DAILY","PERIOD"]
[331909999,1720829441326,-552.200709,0.00024931,2]
[331910000,1720829441338,-500.0,0.00024931,2]
[331910001,1720829441348,-500.0,0.00024931,2]
[331910002,1720829441358,-500.0,0.00024931,2]
[331910003,1720829441367,-500.0,0.00024931,2]
[331910004,1720829441376,-500.0,0.00024931,2]
[331910005,1720829441386,-500.0,0.00024931,2]
[331910006,1720829441395,-352.39395325,0.00024931,2]
[331910007,1720829441404,-500.0,0.00024931,2]
[331910008,1720829441413,-500.0,0.00024931,2]
[331910009,1720829441424,-500.0,0.00024931,2]
[331910010,1720829441434,-500.0,0.00024931,2]
[331910011,1720829441445,-500.0,0.00024931,2]
[331910012,1720829441455,-500.0,0.00024931,2]
[331910013,1720829441466,-500.0,0.00024931,2]
[331910014,1720829441476,-500.0,0.00024931,2]
[331910015,1720829441487,-530.51,0.00024931,2]
[331910016,1720829441498,-500.0,0.00024931,2]
[331910017,1720829441508,-500.0,0.00024931,2]
[331910018,1720829441519,-555.21,0.00024931,2]
[331910019,1720829441529,-500.0,0.00024931,2]
[331910020,1720829441538,-500.0,0.00024931,2]
[331910021,1720829441549,-1436.72,0.00024931,2]
[331910022,1720829441558,-500.0,0.00024931,2]
[331910023,1720829441570,-500.0,0.00024931,2]
[331910024,1720829441581,-202.63423638,0.00024931,2]
[331910025,1720829441592,-500.0,0.00024931,2]
[331910026,1720829441601,-500.0,0.00024931,2]
[331910027,1720829441611,-500.0,0.00024931,2]
[331910028,1720829441622,-500.0,0.00024931,2]
[331910029,1720829441631,-500.0,0.00024931,2]
[331910030,1720829441640,-500.0,0.00024931,2]
[331910031,1720829441651,-500.0,0.00024931,2]
[331910032,1720829441660,-500.0,0.00024931,2]
[331910033,1720829441671,-500.0,0.00024931,2]
[331910034,1720829441680,-500.0,0.00024931,2]
[331910035,1720829441690,-500.0,0.00024931,2]
[331910036,1720829441699,-500.0,0.00024931,2]
[331910037,1720829441709,-500.0,0.00024931,2]
[331910038,1720829441719,-500.0,0.00024931,2]
[331910039,1720829441729,-500.0,0.00024931,2]
[331910040,1720829441738,-24098.84,0.00024931,2]
[331910041,1720829441751,-500.0,0.00024931,2]
[331910042,1720829441761,-500.0,0.00024931,2]
[331910043,1720829441770,-500.0,0.00024931,2]
[331910044,1720829441779,-500.0,0.00024931,2]
[331910045,1720829441790,-253.47347366,0.00024931,2]
[331910046,1720829441800,-2569.12,0.00024931,2]
[331910047,1720829441809,-587.94772779,0.00024931,2]
[331910048,1720829441819,-500.0,0.00024931,2]
[331910049,1720829441830,-500.0,0.00024931,2]
[331910050,1720829441839,-500.0,0.00024931,2]
[331910051,1720829441849,-500.0,0.00024931,2]
[331910052,1720829441858,-500.0,0.00024931,2]
[331910053,1720829441868,-500.0,0.00024931,2]
[331910054,1720829441877,-500.0,0.00024931,2]
[331910055,1720829441886,-357.05222486,0.00024931,2]
[331910056,1720829441895,-500.0,0.00024931,2]
[331910057,1720829441904,-278.92389086,0.00024931,2]
[331910058,1720829441913,-500.0,0.00024931,2]
[331910059,1720829441923,-500.0,0.00024931,2]
[331910060,1720829441932,-500.0,0.00024931,2]
[331910061,1720829441942,-500.0,0.00024931,2]
[331910062,1720829441951,-500.0,0.00024931,2]
[331910063,1720829441961,-500.0,0.00024931,2]
[331910064,1720829441970,-646.03995773,0.00024931,2]
[331910065,1720829441979,-1265.83,0.00024931,2]
[331910066,1720829441989,-500.0,0.00024931,2]
[331910067,1720829442000,-500.0,0.00024931,2]
[331910068,1720829442010,-500.0,0.00024931,2]
[331910069,1720829442020,-572.30636122,0.00024968,2]
[331910070,1720829442030,-897.76,0.00024999,2]
[331910071,1720829442039,-22183.481315,0.00025,2]
[331910072,1720829442048,-190.79481972,0.00025,2]
[331910073,1720829442058,-2656.05505174,0.00025099,3]
[331910074,1720829442067,-2656.05505174,0.00025195,3]
[331910075,1720829442077,-897.76,0.00025204,2]
[331910076,1720829442086,-500.0,0.00025205,2]
[331910077,1720829442096,-590.43836456,0.00025205,2]
[331910078,1720829442105,-501.31606615,0.00025205,2]
[331910079,1720829442115,-500.0,0.00025205,2]
[331910080,1720829442124,-500.0,0.00025205,2]
[331910081,1720829442134,-500.0,0.00025205,2]
[331910082,1720829442143,-500.0,0.00025205,2]
[331910083,1720829442154,-500.0,0.00025205,2]
[331910084,1720829442163,-510.09,0.00025205,2]
[331910085,1720829442172,-500.0,0.00025205,2]
[331910086,1720829442182,-208.80140146,0.00025205,2]
[331910087,1720829442193,-500.0,0.00025205,2]
[331910088,1720829442202,-500.0,0.00025205,2]
[331910089,1720829442211,-500.0,0.00025205,2]
[331910090,1720829442220,-500.0,0.00025205,2]
[331910091,1720829442230,-500.0,0.00025205,2]
[331910092,1720829442239,-500.0,0.00025205,2]
[331910093,1720829442248,-315.87454827,0.00025205,2]
[331910094,1720829442258,-500.0,0.00025205,2]
[331910095,1720829442267,-500.0,0.00025205,2]
[331910096,1720829442277,-387.17671969,0.00025205,2]
[331910097,1720829442286,-500.0,0.00025205,2]
[331910098,1720829442295,-613.86644046,0.00025205,2]
[331910099,1720829442304,-500.0,0.00025205,2]
[331910100,1720829442314,-500.0,0.00025205,2]
[331910101,1720829442323,-551.28,0.00025205,2]
[331910102,1720829442332,-480.95185777,0.00025205,2]
[331910103,1720829442342,-711.38,0.00025205,2]
[331910104,1720829442351,-500.0,0.00025205,2]
[331910105,1720829442360,-500.0,0.00025205,2]
[331910106,1720829442369,-500.0,0.00025205,2]
[331910107,1720829442379,-500.0,0.00025205,2]
[331910108,1720829442388,-500.0,0.00025205,2]
[331910109,1720829442398,-500.0,0.00025205,2]
[331910110,1720829442407,-500.0,0.00025205,2]
[331910111,1720829442416,-500.0,0.00025205,2]
[331910112,1720829442425,-500.0,0.00025205,2]
[331910113,1720829442435,-500.0,0.00025205,2]
[331910114,1720829442445,-500.0,0.00025205,2]
[331910115,1720829442477,-500.0,0.00025205,2]
[331910116,1720829442487,-500.0,0.00025205,2]
[331910117,1720829442496,-500.0,0.00025205,2]
[331910118,1720829442507,-500.0,0.00025205,2]
[331910119,1720829442516,-500.0,0.00025205,2]
[331910120,1720829442525,-500.0,0.00025205,2]
[331910121,1720829442536,-500.0,0.00025205,2]
[331910122,1720829442547,-500.0,0.00025205,2]
[331910123,1720829442562,-500.0,0.00025205,2]
[331910124,1720829442572,-221.91,0.00025205,2]
[331910125,1720829442582,-500.0,0.00025205,2]
[331910126,1720829442591,-500.0,0.00025205,2]
[331910127,1720829442600,-326.67483449,0.00025205,2]
[331910128,1720829442609,-500.0,0.00025205,2]
[331910129,1720829442618,-500.0,0.00025205,2]
[331910130,1720829442628,-530.51,0.00025205,2]
[331910131,1720829442637,-323.05479282,0.00025205,2]
[331910132,1720829442647,-500.0,0.00025205,2]
[331910133,1720829442656,-555.21,0.00025205,2]
[331910134,1720829442667,-500.0,0.00025205,2]
[331910135,1720829442677,-382.01225289,0.00025205,2]
[331910136,1720829442688,-1436.72,0.00025205,2]
[331910137,1720829442698,-500.0,0.00025205,2]
[331910138,1720829442707,-500.0,0.00025205,2]
[331910139,1720829442717,-500.0,0.00025205,2]
[331910140,1720829442727,-500.0,0.00025205,2]
[331910141,1720829442737,-500.0,0.00025205,2]
[331910142,1720829442747,-500.0,0.00025205,2]
[331910143,1720829442757,-500.0,0.00025205,2]
[331910144,1720829442766,-500.0,0.00025205,2]
[331910145,1720829442776,-500.0,0.00025205,2]
[331910147,1720829442786,-500.0,0.00025205,2]
[331910148,1720829442795,-500.0,0.00025205,2]
[331910149,1720829442805,-515.11881733,0.00025205,2]
[331910151,1720829442815,-500.0,0.00025205,2]
[331910154,1720829442825,-500.0,0.00025205,2]
[331910155,1720829442834,-500.0,0.00025205,2]
[331910158,1720829442844,-24098.84,0.00025205,2]
[331910160,1720829442854,-500.0,0.00025205,2]
[331910162,1720829442863,-500.0,0.00025205,2]
[331910164,1720829442872,-500.0,0.00025205,2]
[331910166,1720829442881,-500.0,0.00025205,2]
[331910168,1720829442891,-2569.12,0.00025205,2]
[331910170,1720829442899,-500.0,0.00025205,2]
[331910171,1720829442909,-500.0,0.00025205,2]
[331910174,1720829442918,-500.0,0.00025205,2]
[331910176,1720829442928,-500.0,0.00025205,2]
[331910178,1720829442937,-500.0,0.00025205,2]
[331910181,1720829442948,-500.0,0.00025205,2]
[331910183,1720829442957,-376.22930901,0.00025205,2]
[331910185,1720829442966,-500.0,0.00025205,2]
[331910188,1720829442975,-500.0,0.00025205,2]
[331910190,1720829442984,-500.0,0.00025205,2]
[331910193,1720829442993,-500.0,0.00025205,2]
[331910197,1720829443002,-500.0,0.00025205,2]
[331910200,1720829443012,-500.0,0.00025205,2]
[331910203,1720829443022,-500.0,0.00025205,2]
[331910205,1720829443031,-1265.83,0.00025205,2]
[331910207,1720829443041,-500.0,0.00025205,2]
[331910209,1720829443050,-224.49838383,0.00025205,2]
[331910211,1720829443060,-500.0,0.00025205,2]
[331910213,1720829443070,-572.30636122,0.00025379,2]
[331910215,1720829443080,-2656.05505174,0.00025469,3]
[331910217,1720829443090,-897.76,0.00025478,2]
[331910218,1720829443099,-500.0,0.00025479,2]
[331910219,1720829443108,-500.0,0.00025479,2]
[331910221,1720829443118,-500.0,0.00025479,2]
[331910223,1720829443127,-500.0,0.00025479,2]
[331910224,1720829443137,-500.0,0.00025479,2]
[331910226,1720829443148,-510.09,0.00025479,2]
[331910228,1720829443157,-500.0,0.00025479,2]
[331910230,1720829443166,-500.0,0.00025479,2]
[331910232,1720829443175,-211.03291629,0.00025479,2]
[331910234,1720829443185,-500.0,0.00025479,2]
[331910236,1720829443195,-500.0,0.00025479,2]
[331910237,1720829443205,-500.0,0.00025479,2]
[331910239,1720829443214,-500.0,0.00025479,2]
[331910241,1720829443223,-500.0,0.00025479,2]
[331910243,1720829443233,-500.0,0.00025479,2]
[331910244,1720829443243,-575.08586764,0.00025479,2]
[331910246,1720829443252,-551.28,0.00025479,2]
[331910248,1720829443262,-711.38,0.00025479,2]
[331910249,1720829443271,-641.39485976,0.00025479,2]
[331910250,1720829443281,-500.0,0.00025479,2]
[331910251,1720829443290,-500.0,0.00025479,2]
[331910252,1720829443300,-500.0,0.00025479,2]
[331910253,1720829443310,-162.39306937,0.00025479,2]
[331910254,1720829443319,-500.0,0.00025479,2]
[331910255,1720829443328,-500.0,0.00025479,2]
[331910256,1720829443337,-500.0,0.00025479,2]
[331910257,1720829443347,-500.0,0.00025479,2]
[331910258,1720829443356,-500.0,0.00025479,2]
[331910259,1720829443365,-500.0,0.00025479,2]
[331910260,1720829443374,-477.06665855,0.00025479,2]
[331910261,1720829443383,-500.0,0.00025479,2]
[331910262,1720829443393,-500.0,0.00025479,2]
[331910263,1720829443402,-500.0,0.00025479,2]
[331910264,1720829443411,-500.0,0.00025479,2]
[331910265,1720829443421,-500.0,0.00025479,2]
[331910266,1720829443430,-500.0,0.00025479,2]
[331910267,1720829443439,-500.0,0.00025479,2]
[331910268,1720829443449,-530.51,0.00025479,2]
[331910269,1720829443458,-500.0,0.00025479,2]
[331910270,1720829443468,-555.21,0.00025479,2]
[331910271,1720829443477,-500.0,0.00025479,2]
[331910272,1720829443487,-1436.72,0.00025479,2]
[331910273,1720829443497,-500.0,0.00025479,2]
[331910274,1720829443506,-500.0,0.00025479,2]
[331910275,1720829443516,-500.0,0.00025479,2]
[331910276,1720829443526,-297.38530946,0.00025479,2]
[331910277,1720829443535,-500.0,0.00025479,2]
[331910278,1720829443544,-500.0,0.00025479,2]
[331910279,1720829443553,-500.0,0.00025479,2]
[331910280,1720829443562,-500.0,0.00025479,2]
[331910281,1720829443571,-500.0,0.00025479,2]
[331910282,1720829443580,-500.0,0.00025479,2]
[331910283,1720829443590,-500.0,0.00025479,2]
[331910284,1720829443599,-500.0,0.00025479,2]
[331910285,1720829443608,-24098.84,0.00025479,2]
[331910286,1720829443618,-500.0,0.00025479,2]
[331910287,1720829443627,-500.0,0.00025479,2]
[331910288,1720829443636,-500.0,0.00025479,2]
[331910289,1720829443646,-2569.12,0.00025479,2]
[331910290,1720829443655,-500.0,0.00025479,2]
[331910291,1720829443664,-500.0,0.00025479,2]
[331910292,1720829443673,-500.0,0.00025479,2]
[331910293,1720829443682,-500.0,0.00025479,2]
[331910294,1720829443692,-500.0,0.00025479,2]
[331910295,1720829443726,-500.0,0.00025479,2]
[331910296,1720829443736,-500.0,0.00025479,2]
[331910297,1720829443745,-500.0,0.00025479,2]
[331910298,1720829443754,-500.0,0.00025479,2]
[331910299,1720829443764,-500.0,0.00025479,2]
[331910300,1720829443773,-500.0,0.00025479,2]
[331910301,1720829443782,-500.0,0.00025479,2]
[331910302,1720829443792,-500.0,0.00025479,2]
[331910303,1720829443801,-1265.83,0.00025479,2]
[331910304,1720829443810,-495.04329148,0.00025673,2]
[331910305,1720829443819,-154.5944506,0.00025683,2]
[331910306,1720829443828,-615.35842618,0.00025711,2]
[331910307,1720829443837,-1406.0,0.00025726,2]
[331910308,1720829443846,-152.71751146,0.00025731,2]
[331910309,1720829443856,-154.5944506,0.00025731,2]
[331910310,1720829443865,-2656.05505174,0.00025743,3]
[331910311,1720829443875,-897.76,0.00025752,2]
[331910312,1720829443884,-500.0,0.00025753,2]
[331910313,1720829443893,-481.41188564,0.00025753,2]
[331910314,1720829443903,-500.0,0.00025753,2]
[331910315,1720829443913,-510.09,0.00025753,2]
[331910316,1720829443923,-500.0,0.00025753,2]
[331910317,1720829443933,-500.0,0.00025753,2]
[331910318,1720829443943,-500.0,0.00025753,2]
[331910319,1720829443953,-500.0,0.00025753,2]
[331910320,1720829443962,-500.0,0.00025753,2]
[331910321,1720829443971,-500.0,0.00025753,2]
[331910322,1720829443981,-551.28,0.00025753,2]
[331910323,1720829443990,-711.38,0.00025753,2]
[331910324,1720829443999,-647.99534177,0.00025753,2]
[331910325,1720829444008,-500.0,0.00025753,2]
[331910326,1720829444018,-500.0,0.00025753,2]
[331910327,1720829444027,-500.0,0.00025753,2]
[331910328,1720829444037,-500.0,0.00025753,2]
[331910329,1720829444046,-500.0,0.00025753,2]
[331910330,1720829444056,-243.99385434,0.00025753,2]
[331910331,1720829444066,-273.29107678,0.00025753,2]
[331910332,1720829444076,-500.0,0.00025753,2]
[331910333,1720829444085,-500.0,0.00025753,2]
[331910334,1720829444094,-500.0,0.00025753,2]
[331910335,1720829444103,-500.0,0.00025753,2]
[331910336,1720829444112,-500.0,0.00025753,2]
[331910337,1720829444122,-530.51,0.00025753,2]
[331910338,1720829444131,-500.0,0.00025753,2]
[331910339,1720829444140,-555.21,0.00025753,2]
[331910341,1720829444150,-500.0,0.00025753,2]
[331910342,1720829444159,-1436.72,0.00025753,2]
[331910344,1720829444169,-500.0,0.00025753,2]
[331910346,1720829444178,-500.0,0.00025753,2]
[331910347,1720829444188,-500.0,0.00025753,2]
[331910349,1720829444199,-500.0,0.00025753,2]
[331910351,1720829444208,-500.0,0.00025753,2]
[331910352,1720829444217,-24098.84,0.00025753,2]
[331910354,1720829444226,-500.0,0.00025753,2]
[331910355,1720829444236,-500.0,0.00025753,2]
[331910356,1720829444245,-500.0,0.00025753,2]
[331910357,1720829444254,-2569.12,0.00025753,2]
[331910358,1720829444263,-500.0,0.00025753,2]
[331910359,1720829444273,-500.0,0.00025753,2]
[331910360,1720829444282,-500.0,0.00025753,2]
[331910361,1720829444292,-500.0,0.00025753,2]
[331910362,1720829444301,-500.0,0.00025753,2]
[331910363,1720829444311,-500.0,0.00025753,2]
[331910364,1720829444320,-500.0,0.00025753,2]
[331910365,1720829444329,-500.0,0.00025753,2]
[331910366,1720829444338,-500.0,0.00025753,2]
[331910367,1720829444347,-500.0,0.00025753,2]
[331910368,1720829444357,-500.0,0.00025753,2]
[331910369,1720829444366,-1265.83,0.00025753,2]
[331910370,1720829444375,-572.30636122,0.0002579,2]
[331910371,1720829444384,-178.12636697,0.00025812,2]
[331910372,1720829444394,-153.79107762,0.00025819,2]
[331910373,1720829444404,-2132.45671248,0.00025869,2]
[331910374,1720829444413,-152.71751146,0.00025878,2]
[331910375,1720829444423,-150.79426912,0.00025954,2]
[331910376,1720829444431,-260.237,0.00025976,2]
[331910377,1720829444443,-150.0,0.00025976,2]
[331910378,1720829444453,-154.74847446,0.00026,2]
[331910379,1720829444463,-495.04329148,0.00026002,2]
[331910380,1720829444473,-152.71751146,0.00026011,2]
[331910381,1720829444482,-2656.05505174,0.00026017,3]
[331910382,1720829444491,-897.76,0.00026026,2]
[331910383,1720829444500,-17761.55689017,0.00026027,5]
[331910384,1720829444509,-500.0,0.00026027,2]
[331910385,1720829444518,-312.80426917,0.00026027,2]
[331910386,1720829444528,-510.09,0.00026027,2]
[331910387,1720829444537,-500.0,0.00026027,2]
[331910388,1720829444546,-500.0,0.00026027,2]
[331910389,1720829444555,-500.0,0.00026027,2]
[331910390,1720829444565,-511.26441348,0.00026027,2]
[331910391,1720829444574,-500.0,0.00026027,2]
[331910392,1720829444583,-165.32166047,0.00026027,2]
[331910393,1720829444593,-551.28,0.00026027,2]
[331910394,1720829444602,-711.38,0.00026027,2]
[331910395,1720829444611,-500.0,0.00026027,2]
[331910396,1720829444620,-500.0,0.00026027,2]
[331910397,1720829444629,-500.0,0.00026027,2]
[331910398,1720829444639,-257.40756088,0.00026027,2]
[331910399,1720829444648,-362.69920823,0.00026027,2]
[331910400,1720829444658,-500.0,0.00026027,2]
[331910401,1720829444667,-500.0,0.00026027,2]
[331910402,1720829444677,-500.0,0.00026027,2]
[331910403,1720829444686,-500.0,0.00026027,2]
[331910404,1720829444698,-530.51,0.00026027,2]
[331910405,1720829444707,-500.0,0.00026027,2]
[331910406,1720829444716,-555.21,0.00026027,2]
[331910407,1720829444726,-500.0,0.00026027,2]
[331910408,1720829444735,-1436.72,0.00026027,2]
[331910409,1720829444744,-500.0,0.00026027,2]
[331910410,1720829444757,-454.58967797,0.00026027,2]
[331910411,1720829444766,-527.62,0.00026027,2]
[331910412,1720829444776,-24098.84,0.00026027,2]
[331910413,1720829444785,-500.0,0.00026027,2]
[331910414,1720829444796,-460.63891358,0.00026027,2]
[331910415,1720829444806,-2569.12,0.00026027,2]
[331910416,1720829444817,-500.0,0.00026027,2]
[331910417,1720829444828,-500.0,0.00026027,2]
[331910418,1720829444838,-500.0,0.00026027,2]
[331910419,1720829444847,-500.0,0.00026027,2]
[331910420,1720829444857,-500.0,0.00026027,2]
[331910421,1720829444866,-500.0,0.00026027,2]
[331910422,1720829444875,-500.0,0.00026027,2]
[331910423,1720829444885,-500.0,0.00026027,2]
[331910424,1720829444895,-1265.83,0.00026027,2]
[331910425,1720829444905,-153.29155785,0.00026067,2]
[331910426,1720829444915,-615.35842618,0.00026104,2]
[331910427,1720829444925,-150.79426912,0.00026133,2]
[331910428,1720829444934,-178.12636697,0.00026146,2]
[331910429,1720829444944,-157.95591486,0.00026161,2]
[331910430,1720829444954,-150.42453829,0.00026164,2]
[331910431,1720829444964,-572.30636122,0.00026201,2]
[331910432,1720829444973,-178.12636697,0.00026225,2]
[331910433,1720829444983,-153.29155785,0.00026248,2]
[331910434,1720829444993,-495.04329148,0.00026291,2]
[331910435,1720829445002,-154.5944506,0.00026294,2]
[331910436,1720829445012,-897.76,0.000263,2]
[331910437,1720829445022,-599.87139088,0.00026301,2]
[331910438,1720829445032,-510.09,0.00026301,2]
[331910439,1720829445042,-500.0,0.00026301,2]
[331910440,1720829445051,-500.0,0.00026301,2]
[331910441,1720829445061,-461.40184938,0.00026301,2]
[331910442,1720829445070,-500.0,0.00026301,2]
[331910443,1720829445080,-551.28,0.00026301,2]
[331910444,1720829445090,-711.38,0.00026301,2]
[331910445,1720829445100,-500.0,0.00026301,2]
[331910446,1720829445110,-500.0,0.00026301,2]
[331910447,1720829445120,-500.0,0.00026301,2]
[331910448,1720829445130,-500.0,0.00026301,2]
[331910449,1720829445140,-500.0,0.00026301,2]
[331910450,1720829445150,-530.51,0.00026301,2]
[331910451,1720829445159,-603.66713942,0.00026301,2]
[331910452,1720829445169,-555.21,0.00026301,2]
[331910453,1720829445179,-500.0,0.00026301,2]
[331910454,1720829445189,-1436.72,0.00026301,2]
[331910455,1720829445201,-500.0,0.00026301,2]
[331910456,1720829445212,-24098.84,0.00026301,2]
[331910457,1720829445222,-2569.12,0.00026301,2]
[331910458,1720829445234,-500.0,0.00026301,2]
[331910459,1720829445243,-500.0,0.00026301,2]
[331910460,1720829445253,-500.0,0.00026301,2]
[331910461,1720829445263,-500.0,0.00026301,2]
[331910462,1720829445274,-293.13997319,0.00026301,2]
[331910463,1720829445284,-213.54245773,0.00026301,2]
[331910464,1720829445294,-500.0,0.00026301,2]
[331910465,1720829445304,-500.0,0.00026301,2]
[331910466,1720829445314,-1265.83,0.00026301,2]
[331910467,1720829445323,-150.42453829,0.00026414,2]
[331910468,1720829445333,-178.12636697,0.0002646,2]
[331910469,1720829445343,-200.0,0.00026475,2]
[331910470,1720829445353,-3000.0,0.000265,2]
[331910471,1720829445363,-2656.05505174,0.000265,3]
[331910472,1720829445373,-3000.0,0.0002651,2]
[331910473,1720829445383,-3000.0,0.0002652,2]
[331910474,1720829445393,-153.79107762,0.00026527,2]
[331910475,1720829445403,-3000.0,0.0002653,2]
[331910476,1720829445412,-3000.0,0.0002654,2]
[331910477,1720829445422,-495.04329148,0.00026542,2]
[331910478,1720829445432,-615.35842618,0.00026542,2]
[331910479,1720829445441,-4175.586431,0.0002655,2]
[331910480,1720829445453,-2656.05505174,0.00026565,3]
[331910481,1720829445463,-897.76,0.00026574,2]
[331910482,1720829445472,-510.09,0.00026575,2]
[331910483,1720829445482,-500.0,0.00026575,2]
[331910484,1720829445493,-500.0,0.00026575,2]
[331910485,1720829445503,-500.0,0.00026575,2]
[331910486,1720829445513,-551.28,0.00026575,2]
[331910487,1720829445523,-711.38,0.00026575,2]
[331910488,1720829445532,-500.0,0.00026575,2]
[331910489,1720829445542,-500.0,0.00026575,2]
[331910490,1720829445551,-284.31938311,0.00026575,2]
[331910491,1720829445560,-530.51,0.00026575,2]
[331910492,1720829445570,-555.21,0.00026575,2]
[331910493,1720829445579,-500.0,0.00026575,2]
[331910494,1720829445589,-1436.72,0.00026575,2]
[331910495,1720829445599,-500.0,0.00026575,2]
[331910496,1720829445609,-24098.84,0.00026575,2]
[331910497,1720829445619,-2569.12,0.00026575,2]
[331910498,1720829445629,-500.0,0.00026575,2]
[331910499,1720829445639,-500.0,0.00026575,2]
[331910500,1720829445649,-340.76657201,0.00026575,2]
[331910501,1720829445659,-500.0,0.00026575,2]
[331910502,1720829445669,-500.0,0.00026575,2]
[331910503,1720829445679,-1265.83,0.00026575,2]
[331910504,1720829445689,-154.5944506,0.00026642,2]
[331910505,1720829445703,-495.04329148,0.00026721,2]
[331910506,1720829445713,-150.79426912,0.00026734,2]
[331910507,1720829445723,-153.29155785,0.00026736,2]
[331910508,1720829445733,-615.35842618,0.0002676,2]
[331910509,1720829445743,-5182.6212183,0.00026771,2]
[331910510,1720829445753,-153.29155785,0.00026773,2]
[331910511,1720829445763,-359.00222009,0.00026782,2]
[331910512,1720829445774,-615.35842618,0.00026799,2]
[331910513,1720829445785,-615.35842618,0.00026837,2]
[331910514,1720829445796,-2656.05505174,0.00026839,3]
[331910515,1720829445807,-897.76,0.00026848,2]
[331910517,1720829445817,-154.60575532,0.00026848,2]
[331910519,1720829445828,-284.29594661,0.00026849,2]
[331910521,1720829445837,-510.09,0.00026849,2]
[331910523,1720829445847,-500.0,0.00026849,2]
[331910524,1720829445857,-500.0,0.00026849,2]
[331910525,1720829445866,-500.0,0.00026849,2]
[331910526,1720829445876,-551.28,0.00026849,2]
[331910527,1720829445886,-711.38,0.00026849,2]
[331910528,1720829445896,-500.0,0.00026849,2]
[331910529,1720829445906,-500.0,0.00026849,2]
[331910530,1720829445917,-530.51,0.00026849,2]
[331910531,1720829445927,-555.21,0.00026849,2]
[331910532,1720829445937,-500.0,0.00026849,2]
[331910533,1720829445949,-1436.72,0.00026849,2]
[331910534,1720829445961,-500.0,0.00026849,2]
[331910535,1720829445971,-24098.84,0.00026849,2]
[331910536,1720829445980,-2569.12,0.00026849,2]
[331910537,1720829445991,-500.0,0.00026849,2]
[331910538,1720829446002,-500.0,0.00026849,2]
[331910539,1720829446012,-500.0,0.00026849,2]
[331910540,1720829446022,-500.0,0.00026849,2]
[331910541,1720829446032,-1265.83,0.00026849,2]
[331910542,1720829446042,-615.35842618,0.00026852,2]
[331910543,1720829446052,-157.95591486,0.00026875,2]
[331910544,1720829446062,-153.29155785,0.00026906,2]
[331910545,1720829446072,-151.0,0.00026911,2]
[331910546,1720829446082,-151.0,0.00026911,2]
[331910547,1720829446092,-495.04329148,0.0002696,2]
[331910548,1720829446102,-154.5944506,0.00026981,2]
[331910549,1720829446112,-150.0,0.00026989,2]
[331910550,1720829446132,-150.42453829,0.00027019,2]
[331910553,1720829446143,-153.79107762,0.00027077,2]
[331910554,1720829446154,-150.42453829,0.00027079,2]
[331910555,1720829446165,-154.5944506,0.0002708,2]
[331910556,1720829446175,-897.76,0.00027122,2]
[331910557,1720829446186,-510.09,0.00027123,2]
[331910559,1720829446198,-500.0,0.00027123,2]
[331910561,1720829446209,-500.0,0.00027123,2]
[331910563,1720829446220,-500.0,0.00027123,2]
[331910565,1720829446231,-551.28,0.00027123,2]
[331910567,1720829446242,-711.38,0.00027123,2]